[Event "Bremer Silvester Open-B 2024"]
[Site "Bremen"]
[Date "2024.12.29"]
[Round "5.1"]
[White "Supplieth, Peter"]
[Black "Lattreuter, Alexander"]
[Result "1/2-1/2"]
[ECO "B10"]
[WhiteElo "1890"]
[BlackElo "1841"]
[Annotator "NA"]
[PlyCount "46"]
[EventDate "2024.12.16"]
[EventType "swiss"]
[EventCountry "GER"]
[SourceTitle "playchess.com"]
[Source "ChessBase"]
[SourceQuality "1"]
[TimeControl "5400+30"]

1. e4 {[%emt 0:00:05]} c6 {[%emt 0:01:59]} 2. Nf3 {[%emt 0:00:09]} d5 {[%emt 0:00:10]} 3. exd5 {[%emt 0:00:06]} cxd5 {[%emt 0:00:03]} 4. Ne5 {[%emt 0:00:08]} Nc6 {[%emt 0:00:06]} 5. d4 {[%emt 0:00:08]} Nf6 {[%emt 0:00:30]} 6. c3 {[%emt 0:00:32]} a6 {[%emt 0:00:36]} 7. Bd3 {[%emt 0:00:27]} e6 {[%emt 0:00:25]} 8. O-O {[%emt 0:00:15]} Bd6 {[%emt 0:00:17]} 9. f4 {[%emt 0:00:24]} O-O {[%emt 0:00:12]} 10. Nd2 {[%emt 0:00:23]} Bd7 {[%emt 0:01:47]} 11. Ndf3 {[%emt 0:00:24]} Rc8 {[%emt 0:04:47]} 12. Be3 {[%emt 0:02:18]} Na5 {[%emt 0:02:09]} 13. Qe2 {[%emt 0:05:27]} b5 {[%emt 0:00:49]} 14. Bf2 {[%emt 0:05:51]} Nc4 {[%emt 0:06:25]} 15. Bh4 {[%emt 0:00:28]} Be7 {[%emt 0:02:17]} 16. Rac1 {[%emt 0:09:47]} h6 {[%emt 0:05:17]} 17. g4 {[%emt 0:06:12]} Ne4 {[%emt 0:04:56]} 18. Bxe7 {[%emt 0:11:04]} Qxe7 {[%emt 0:00:13]} 19. Nxd7 {[%emt 0:03:21]} Qxd7 {[%emt 0:00:07]} 20. Ne5 {[%emt 0:02:58]} Nxe5 {[%emt 0:03:32]} 21. fxe5 {[%emt 0:00:17]} Ng5 {[%emt 0:00:09]} 22. Bb1 {[%emt 0:07:42]} Qe7 {[%emt 0:02:20]} 23. Kg2 {[%emt 0:03:09]} Rc4 {[%emt 0:05:54]} 1/2-1/2

[Event "Bremer Silvester Open-B 2024"]
[Site "Bremen"]
[Date "2024.12.29"]
[Round "5.3"]
[White "Maeder, Christian"]
[Black "Rauscher, Joachim"]
[Result "1-0"]
[ECO "B21"]
[WhiteElo "1995"]
[BlackElo "1797"]
[Annotator "NA RC"]
[PlyCount "56"]
[EventDate "2024.12.16"]
[EventType "swiss"]
[EventCountry "GER"]
[SourceTitle "playchess.com"]
[Source "ChessBase"]
[SourceQuality "1"]
[TimeControl "5400+30"]

1. e4 {[%emt 0:00:03]} c5 {[%emt 0:00:05]} 2. Nf3 {[%emt 0:00:07]} d6 {[%emt 0:00:07]} 3. d4 {[%emt 0:00:21]} cxd4 {[%emt 0:00:07]} 4. c3 {[%emt 0:00:09]} dxc3 {[%emt 0:00:19]} 5. Nxc3 {[%emt 0:00:05]} Nc6 {[%emt 0:00:46]} 6. Bc4 {[%emt 0:00:19]} e6 {[%emt 0:00:22]} 7. O-O {[%emt 0:00:12]} Nge7 {[%emt 0:00:11]} 8. Qe2 {[%emt 0:03:44]} Ng6 {[%emt 0:00:14]} 9. Rd1 {[%emt 0:02:43]} Be7 {[%emt 0:00:53]} 10. Be3 {[%emt 0:02:16]} O-O {[%emt 0:00:45]} 11. Nb5 {[%emt 0:04:16]} a6 {[%emt 0:03:35]} 12. Nbd4 {[%emt 0:01:14]} Nxd4 {[%emt 0:01:56]} 13. Rxd4 {[%emt 0:02:39]} b5 {[%emt 0:02:14]} 14. Bb3 {[%emt 0:00:19]} Bb7 {[%emt 0:01:15]} 15. Rad1 {[%emt 0:02:01]} Qc7 {[%emt 0:01:18]} 16. h4 {[%emt 0:05:09]} Rfd8 {[%emt 0:05:33]} 17. Ng5 {[%emt 0:04:25]} Bxg5 {[%emt 0:03:34]} 18. Bxg5 {[%emt 0:00:37]} Rd7 {[%emt 0:01:08]} 19. h5 {[%emt 0:04:03]} Nf8 {[%emt 0:02:22]} 20. Qg4 {[%emt 0:06:25]} Qc5 {[%emt 0:19:58]} 21. Bf6 {[%emt 0:02:37]} g6 {[%emt 0:02:52]} 22. e5 {[%emt 0:00:40]} Qc6 {[%emt 0:05:37]} 23. exd6 {[%emt 0:06:26]} Re8 {[%emt 0:04:58]} 24. Qg3 {[%emt 0:08:07]} e5 {[%emt 0:03:13]} 25. Bd5 {[%emt 0:02:48]} Qxd6 {[%emt 0:05:15]} 26. Bxf7+ {[%emt 0:01:39]} Kxf7 {[%emt 0:00:20]} 27. Rxd6 {[%emt 0:00:16]} Rxd6 {[%emt 0:00:30]} 28. Rxd6 {[%emt 0:00:29]} Bc8 {[%emt 0:35:03]} 1-0

[Event "Bremer Silvester Open-B 2024"]
[Site "Bremen"]
[Date "2024.12.29"]
[Round "5.4"]
[White "Pass, Marlon"]
[Black "Wildt, Alexander"]
[Result "1/2-1/2"]
[ECO "B13"]
[WhiteElo "1796"]
[BlackElo "1845"]
[Annotator "NA RC"]
[PlyCount "100"]
[EventDate "2024.12.16"]
[EventType "swiss"]
[EventCountry "GER"]
[SourceTitle "playchess.com"]
[Source "ChessBase"]
[SourceQuality "1"]
[TimeControl "5400+30"]

1. d4 {[%emt 0:00:02]} d5 {[%emt 0:00:04]} 2. Bf4 {[%emt 0:00:06]} Nf6 {[%emt 0:00:06]} 3. e3 {[%emt 0:00:04]} c5 {[%emt 0:00:19]} 4. c3 {[%emt 0:00:55]} Nc6 {[%emt 0:00:13]} 5. Nf3 {[%emt 0:00:08]} cxd4 {[%emt 0:01:29]} 6. exd4 {[%emt 0:00:19]} Bg4 {[%emt 0:00:23]} 7. Nbd2 {[%emt 0:00:21]} e6 {[%emt 0:00:46]} 8. Qa4 {[%emt 0:00:18]} Bxf3 {[%emt 0:00:27]} 9. Nxf3 {[%emt 0:00:06]} Bd6 {[%emt 0:00:17]} 10. Bg3 {[%emt 0:01:34]} O-O {[%emt 0:00:19]} 11. Bd3 {[%emt 0:00:21]} a6 {[%emt 0:00:51]} 12. Qc2 {[%emt 0:01:57]} Rc8 {[%emt 0:00:24]} 13. Bh4 {[%emt 0:00:58]} Nb4 {[%emt 0:01:12]} 14. Qd2 {[%emt 0:01:06]} Nxd3+ {[%emt 0:03:03]} 15. Qxd3 {[%emt 0:00:03]} Be7 {[%emt 0:00:14]} 16. Ne5 {[%emt 0:03:33]} Ne4 {[%emt 0:00:57]} 17. Bg3 {[%emt 0:00:31]} b5 {[%emt 0:01:14]} 18. f3 {[%emt 0:00:15]} Nd6 {[%emt 0:00:09]} 19. a3 {[%emt 0:02:41]} Nc4 {[%emt 0:00:20]} 20. Rb1 {[%emt 0:02:30]} Bd6 {[%emt 0:00:29]} 21. f4 {[%emt 0:01:03]} a5 {[%emt 0:01:19]} 22. O-O {[%emt 0:01:07]} f5 {[%emt 0:06:19]} 23. Nxc4 {[%emt 0:03:59]} bxc4 {[%emt 0:00:14]} 24. Qe2 {[%emt 0:00:23]} Qd7 {[%emt 0:03:43]} 25. Rf3 {[%emt 0:06:17]} Be7 {[%emt 0:06:34]} 26. Re1 {[%emt 0:01:58]} Rc6 {[%emt 0:00:18]} 27. Re3 {[%emt 0:00:20]} Kf7 {[%emt 0:00:34]} 28. Qc2 {[%emt 0:01:01]} Rb8 {[%emt 0:01:14]} 29. Qa4 {[%emt 0:09:02]} Qc7 {[%emt 0:03:15]} 30. R3e2 {[%emt 0:03:44]} Rb3 {[%emt 0:01:25]} 31. h3 {[%emt 0:00:37]} Bd8 {[%emt 0:02:06]} 32. Bf2 {[%emt 0:04:41]} Rd6 {[%emt 0:04:24]} 33. g3 {[%emt 0:05:50]} Qb7 {[%emt 0:02:05]} 34. Rb1 {[%emt 0:05:52]} Rxc3 {[%emt 0:01:42]} 35. Re3 {[%emt 0:03:41]} Rb3 {[%emt 0:07:16]} 36. Rxb3 {[%emt 0:00:12]} Qxb3 {[%emt 0:00:07]} 37. Qxb3 {[%emt 0:00:04]} cxb3 {[%emt 0:00:09]} 38. Rc1 {[%emt 0:00:07]} Ke7 {[%emt 0:04:46]} 39. Be1 {[%emt 0:03:14]} Kd7 {[%emt 0:05:59]} 40. Kf2 {[%emt 0:00:55]} Rc6 {[%emt 0:03:57]} 41. Bc3 {[%emt 0:00:52]} a4 {[%emt 0:00:23]} 42. Ke3 {[%emt 0:03:23]} h6 {[%emt 0:03:00]} 43. h4 {[%emt 0:00:31]} g5 {[%emt 0:01:07]} 44. hxg5 {[%emt 0:00:04]} hxg5 {[%emt 0:00:08]} 45. Rh1 {[%emt 0:00:04]} gxf4+ {[%emt 0:04:14]} 46. gxf4 {[%emt 0:00:13]} Ke7 {[%emt 0:03:05]} 47. Rh7+ {[%emt 0:02:54]} Kf6 {[%emt 0:00:18]} 48. Ra7 {[%emt 0:00:36]} Rc4 {[%emt 0:00:13]} 49. Ra6 {[%emt 0:01:59]} Be7 {[%emt 0:01:00]} 50. Kd3 {[%emt 0:01:12]} Bf8 {[%emt 0:09:35]} 1/2-1/2

[Event "Bremer Silvester Open-B 2024"]
[Site "Bremen"]
[Date "2024.12.29"]
[Round "5.5"]
[White "Beeck, Sebastian"]
[Black "Tresper, Philipp"]
[Result "1-0"]
[ECO "B12"]
[WhiteElo "1753"]
[BlackElo "1807"]
[Annotator "NA RC"]
[PlyCount "83"]
[EventDate "2024.12.16"]
[EventType "swiss"]
[EventCountry "GER"]
[SourceTitle "playchess.com"]
[Source "ChessBase"]
[SourceQuality "1"]
[TimeControl "5400+30"]

1. e4 {[%emt 0:00:12]} c6 {[%emt 0:00:05]} 2. d4 {[%emt 0:00:31]} d5 {[%emt 0:00:06]} 3. f3 {[%emt 0:00:27]} e6 {[%emt 0:00:14]} 4. Bd3 {[%emt 0:00:20]} Nd7 {[%emt 0:01:24]} 5. Ne2 {[%emt 0:04:23]} c5 {[%emt 0:01:51]} 6. c3 {[%emt 0:00:28]} Qb6 {[%emt 0:03:25]} 7. a4 {[%emt 0:07:33]} cxd4 {[%emt 0:02:11]} 8. a5 {[%emt 0:02:06]} Qd8 {[%emt 0:02:28]} 9. exd5 {[%emt 0:14:05]} e5 {[%emt 0:04:37]} 10. c4 {[%emt 0:08:52]} Bb4+ {[%emt 0:08:39]} 11. Bd2 {[%emt 0:00:54]} Bxd2+ {[%emt 0:00:47]} 12. Nxd2 {[%emt 0:05:36]} Qg5 {[%emt 0:06:03]} 13. Ng3 {[%emt 0:07:16]} Nc5 {[%emt 0:03:15]} 14. Qe2 {[%emt 0:07:27]} Qe3 {[%emt 0:06:47]} 15. Be4 {[%emt 0:00:44]} Nf6 {[%emt 0:03:10]} 16. Qxe3 {[%emt 0:01:44]} dxe3 {[%emt 0:01:25]} 17. Ndf1 {[%emt 0:03:04]} Nfxe4 {[%emt 0:06:35]} 18. Nxe4 {[%emt 0:02:31]} Nd3+ {[%emt 0:01:23]} 19. Ke2 {[%emt 0:00:32]} Nf4+ {[%emt 0:00:25]} 20. Kxe3 {[%emt 0:01:03]} Nxg2+ {[%emt 0:00:12]} 21. Kd2 {[%emt 0:02:46]} Nh4 {[%emt 0:03:19]} 22. Ke2 {[%emt 0:03:19]} Nf5 {[%emt 0:02:14]} 23. Ne3 {[%emt 0:00:49]} Nd4+ {[%emt 0:01:09]} 24. Kf2 {[%emt 0:00:10]} O-O {[%emt 0:00:54]} 25. b4 {[%emt 0:04:05]} f5 {[%emt 0:01:40]} 26. Nd6 {[%emt 0:02:37]} e4 {[%emt 0:00:55]} 27. f4 {[%emt 0:04:46]} Kh8 {[%emt 0:05:38]} 28. h4 {[%emt 0:00:49]} Rf6 {[%emt 0:02:15]} 29. c5 {[%emt 0:02:08]} a6 {[%emt 0:00:05]} 30. Rad1 {[%emt 0:01:19]} Nb5 {[%emt 0:00:35]} 31. Nxb5 {[%emt 0:01:00]} axb5 {[%emt 0:00:11]} 32. h5 {[%emt 0:02:09]} Bd7 {[%emt 0:01:04]} 33. d6 {[%emt 0:01:21]} Bc6 {[%emt 0:01:42]} 34. Nd5 {[%emt 0:00:42]} Bxd5 {[%emt 0:00:50]} 35. Rxd5 {[%emt 0:00:09]} Kg8 {[%emt 0:00:44]} 36. Rhd1 {[%emt 0:00:44]} Rd8 {[%emt 0:02:17]} 37. Re5 {[%emt 0:01:31]} Rf7 {[%emt 0:00:37]} 38. a6 {[%emt 0:01:06]} bxa6 {[%emt 0:06:51]} 39. c6 {[%emt 0:00:44]} Rff8 {[%emt 0:00:06]} 40. d7 {[%emt 0:01:07]} Rf7 {[%emt 0:01:57]} 41. Re8+ {[%emt 0:00:15]} Rf8 {[%emt 0:00:10]} 42. Rxf8+ {[%emt 0:00:27]} 1-0

[Event "Bremer Silvester Open-B 2024"]
[Site "Bremen"]
[Date "2024.12.29"]
[Round "5.6"]
[White "Wernke-Schmiesing, Sebastian"]
[Black "Grabowski, Petra"]
[Result "1/2-1/2"]
[ECO "E05"]
[WhiteElo "1806"]
[BlackElo "1766"]
[Annotator "NA RC"]
[PlyCount "48"]
[EventDate "2024.12.16"]
[EventType "swiss"]
[EventCountry "GER"]
[SourceTitle "playchess.com"]
[Source "ChessBase"]
[SourceQuality "1"]
[TimeControl "5400+30"]

1. d4 {[%emt 0:00:02]} d5 {[%emt 0:01:24]} 2. c4 {[%emt 0:00:08]} e6 {[%emt 0:00:01]} 3. Nf3 {[%emt 0:00:06]} Nf6 {[%emt 0:00:04]} 4. g3 {[%emt 0:00:07]} Be7 {[%emt 0:00:01]} 5. Bg2 {[%emt 0:00:10]} O-O {[%emt 0:00:04]} 6. O-O {[%emt 0:00:11]} dxc4 {[%emt 0:00:05]} 7. Qc2 {[%emt 0:00:12]} a6 {[%emt 0:00:02]} 8. Qxc4 {[%emt 0:00:30]} b5 {[%emt 0:00:05]} 9. Qc2 {[%emt 0:01:07]} Bb7 {[%emt 0:00:35]} 10. Rd1 {[%emt 0:00:54]} Nbd7 {[%emt 0:01:17]} 11. Nc3 {[%emt 0:05:55]} Rc8 {[%emt 0:03:25]} 12. a3 {[%emt 0:05:08]} c5 {[%emt 0:08:43]} 13. dxc5 {[%emt 0:01:19]} Bxc5 {[%emt 0:02:32]} 14. Bg5 {[%emt 0:05:02]} Qb6 {[%emt 0:02:37]} 15. e3 {[%emt 0:03:41]} h6 {[%emt 0:01:31]} 16. Bxf6 {[%emt 0:03:35]} Nxf6 {[%emt 0:00:04]} 17. Qe2 {[%emt 0:02:38]} Ne4 {[%emt 0:04:37]} 18. Nxe4 {[%emt 0:02:29]} Bxe4 {[%emt 0:00:02]} 19. Ne5 {[%emt 0:10:11]} Bxg2 {[%emt 0:09:28]} 20. Kxg2 {[%emt 0:01:56]} Qb7+ {[%emt 0:01:38]} 21. Kg1 {[%emt 0:01:08]} Rfd8 {[%emt 0:03:24]} 22. Rxd8+ {[%emt 0:01:06]} Rxd8 {[%emt 0:00:01]} 23. Rd1 {[%emt 0:06:52]} Rxd1+ {[%emt 0:00:30]} 24. Qxd1 {[%emt 0:00:04]} Qc7 {[%emt 0:00:43]} 1/2-1/2

[Event "Bremer Silvester Open-B 2024"]
[Site "Bremen"]
[Date "2024.12.29"]
[Round "5.8"]
[White "Ewers, Christian"]
[Black "Jablonski, Ture"]
[Result "1-0"]
[ECO "C24"]
[WhiteElo "1820"]
[BlackElo "1718"]
[Annotator "NA RC"]
[PlyCount "99"]
[EventDate "2024.12.16"]
[EventType "swiss"]
[EventCountry "GER"]
[SourceTitle "playchess.com"]
[Source "ChessBase"]
[SourceQuality "1"]
[TimeControl "5400+30"]

1. e4 {[%emt 0:10:23]} e5 {[%emt 0:01:38]} 2. Bc4 {[%emt 0:00:30]} Nc6 {[%emt 0:00:07]} 3. d3 {[%emt 0:00:06]} Nf6 {[%emt 0:00:06]} 4. Bg5 {[%emt 0:00:08]} Be7 {[%emt 0:00:13]} 5. Bxf6 {[%emt 0:00:17]} Bxf6 {[%emt 0:00:05]} 6. Ne2 {[%emt 0:00:29]} Na5 {[%emt 0:00:50]} 7. b4 {[%emt 0:00:15]} Nxc4 {[%emt 0:00:12]} 8. dxc4 {[%emt 0:00:09]} d6 {[%emt 0:00:16]} 9. Ng3 {[%emt 0:00:37]} Be6 {[%emt 0:06:22]} 10. Qd3 {[%emt 0:00:11]} h5 {[%emt 0:06:54]} 11. h3 {[%emt 0:00:53]} g6 {[%emt 0:00:46]} 12. Nc3 {[%emt 0:00:12]} c6 {[%emt 0:07:31]} 13. a4 {[%emt 0:00:52]} Be7 {[%emt 0:00:58]} 14. O-O {[%emt 0:01:48]} Qc7 {[%emt 0:02:35]} 15. Rfd1 {[%emt 0:01:17]} Kf8 {[%emt 0:15:59]} 16. a5 {[%emt 0:02:50]} Kg7 {[%emt 0:02:26]} 17. a6 {[%emt 0:00:36]} Rhc8 {[%emt 0:11:46]} 18. Nf1 {[%emt 0:02:19]} b5 {[%emt 0:01:45]} 19. cxb5 {[%emt 0:03:17]} cxb5 {[%emt 0:00:24]} 20. Nxb5 {[%emt 0:00:58]} Qb6 {[%emt 0:01:25]} 21. Ne3 {[%emt 0:12:48]} Rab8 {[%emt 0:04:14]} 22. c4 {[%emt 0:06:30]} Bxc4 {[%emt 0:02:59]} 23. Nxc4 {[%emt 0:00:21]} Qxb5 {[%emt 0:00:06]} 24. Ne3 {[%emt 0:04:58]} Qxd3 {[%emt 0:08:38]} 25. Rxd3 {[%emt 0:00:44]} Kf8 {[%emt 0:04:25]} 26. Nd5 {[%emt 0:00:38]} Rc2 {[%emt 0:01:27]} 27. Rda3 {[%emt 0:03:44]} Bh4 {[%emt 0:04:37]} 28. g3 {[%emt 0:00:26]} Bd8 {[%emt 0:00:02]} 29. R3a2 {[%emt 0:00:37]} Rc4 {[%emt 0:00:53]} 30. Re1 {[%emt 0:03:33]} Bb6 {[%emt 0:01:31]} 31. Ree2 {[%emt 0:00:22]} Ke8 {[%emt 0:01:23]} 32. Rac2 {[%emt 0:01:45]} Rxc2 {[%emt 0:03:00]} 33. Rxc2 {[%emt 0:00:46]} Kd7 {[%emt 0:00:31]} 34. Kf1 {[%emt 0:02:13]} Bd8 {[%emt 0:00:53]} 35. Ke2 {[%emt 0:01:32]} Rc8 {[%emt 0:00:28]} 36. Rxc8 {[%emt 0:01:37]} Kxc8 {[%emt 0:00:12]} 37. Kd3 {[%emt 0:00:20]} Kd7 {[%emt 0:00:09]} 38. Kc4 {[%emt 0:00:14]} f5 {[%emt 0:01:00]} 39. f3 {[%emt 0:00:09]} Kc8 {[%emt 0:09:25]} 40. Nc3 {[%emt 0:01:22]} Kc7 {[%emt 0:01:37]} 41. Na4 {[%emt 0:01:12]} Kd7 {[%emt 0:00:31]} 42. Kd5 {[%emt 0:00:23]} Bc7 {[%emt 0:00:38]} 43. b5 {[%emt 0:00:49]} f4 {[%emt 0:00:17]} 44. g4 {[%emt 0:00:46]} h4 {[%emt 0:00:34]} 45. b6 {[%emt 0:00:19]} Bb8 {[%emt 0:00:16]} 46. b7 {[%emt 0:01:08]} g5 {[%emt 0:00:12]} 47. Nb2 {[%emt 0:00:44]} Bc7 {[%emt 0:01:11]} 48. Nd3 {[%emt 0:00:10]} Bb8 {[%emt 0:00:09]} 49. Nb4 {[%emt 0:00:11]} Bc7 {[%emt 0:00:37]} 50. Nc6 {[%emt 0:00:09]} 1-0